bitfinex-derivatives/quotes_SOLF0:USTF0_20240912
["timestamp","ask_amount","ask_price","bid_price","bid_amount"]
[1726181235343,3.2898,136.78,136.75,7.9]
[1726181235944,3.2898,136.78,136.72,7.4045]
[1726181236142,3.2898,136.78,136.75,7.9]
[1726181238641,7.9,136.77,136.72,4.1135]
[1726181238842,7.9,136.77,136.72,12.0135]
[1726181239339,7.9,136.77,136.73,7.9]
[1726181239340,11.61753603,136.77,136.73,7.9]
[1726181240236,3.2903,136.76,136.73,7.9]
[1726181240937,3.2903,136.76,136.72,10.6476]
[1726181241142,7.9,136.76,136.69,3.2918]
[1726181241441,7.9,136.76,136.71,7.9]
[1726181242034,3.2905,136.75,136.71,7.9]
[1726181243044,11.1903,136.76,136.71,7.9]
[1726181244142,3.2905,136.75,136.71,7.9]
[1726181244340,11.1905,136.75,136.71,7.9]
[1726181244541,3.2907,136.74,136.71,7.9]
[1726181244731,3.2907,136.74,136.7,7.9]
[1726181247338,11.1907,136.74,136.7,7.9]
[1726181248737,11.1911,136.73,136.68,2.6052]
[1726181248933,11.1911,136.73,136.68,10.5052]
[1726181250044,3.59422524,136.72,136.68,10.5052]
[1726181250843,3.59422524,136.72,136.68,2.6052]
[1726181251045,3.59422524,136.72,136.69,7.9]
[1726181252145,6.88542524,136.72,136.69,7.9]
[1726181252551,3.2918,136.7,136.53,6.5916]
[1726181252748,3.2918,136.7,136.65,7.9]
[1726181252749,11.1918,136.7,136.65,7.9]
[1726181253046,3.59422524,136.72,136.65,7.9]
[1726181253346,136.24244096,136.75,136.65,7.9]
[1726181253347,7.9,136.69,136.65,7.9]
[1726181253850,11.1919,136.69,136.65,7.9]
[1726181254038,11.1919,136.69,136.64,7.9]
[1726181254039,7.9,136.69,136.64,7.9]
[1726181254238,7.9,136.68,136.63,10.5435]
[1726181254549,11.1923,136.68,136.63,10.5435]
[1726181254945,3.2926,136.67,136.63,10.5435]
[1726181255247,14.76371485,136.67,136.63,10.5435]
[1726181255444,11.1926,136.67,136.63,10.5435]
[1726181255644,14.8211777,136.67,136.63,10.5435]
[1726181256538,11.1926,136.67,136.63,10.5435]
[1726181256750,11.1926,136.67,136.63,2.6435]
[1726181257049,11.1926,136.66,136.63,2.6435]
[1726181257251,11.1926,136.66,136.63,1.2779]
[1726181260653,11.1926,136.66,136.6,168.58907574]
[1726181260854,11.1926,136.66,136.61,7.9]
[1726181261355,11.1926,136.66,136.6,168.58907574]
[1726181261558,11.1926,136.66,136.62,7.9]
[1726181262456,7.9,136.69,136.64,7.9]
[1726181262858,3.2922,136.68,136.64,7.9]
[1726181265059,11.192,136.69,136.64,7.9]
[1726181267261,3.2922,136.68,136.64,7.9]
[1726181271266,11.1922,136.68,136.64,7.9]
[1726181283274,7.9,136.68,136.64,11.1931]
[1726181283481,7.9,136.68,136.64,7.9]
[1726181284378,11.1922,136.68,136.64,7.9]
[1726181287873,7.9,136.68,136.64,7.9]
[1726181288075,7.9,136.68,136.64,11.1929]
[1726181288283,7.9,136.69,136.64,7.9]
[1726181288480,7.9,136.69,136.64,3.2931]
[1726181288680,7.9,136.69,136.64,11.1931]
[1726181289685,7.46122359,136.74,136.65,11.1928]
[1726181289877,7.46122359,136.74,136.65,7.9]
[1726181290182,7.9,136.71,136.67,7.9]
[1726181290778,7.9,136.71,136.67,11.1922]
[1726181291183,7.9,136.72,136.67,7.9]
[1726181291386,7.9,136.72,136.67,11.1923]
[1726181292985,11.1912,136.72,136.67,11.1923]
[1726181295682,7.9,136.72,136.68,3.2921]
[1726181296795,7.9,136.72,136.68,4.7011]
[1726181297100,7.9,136.72,136.68,12.6011]
[1726181297491,11.1912,136.72,136.68,12.6011]
[1726181297893,11.1912,136.72,136.68,9.309]
[1726181298793,7.9,136.72,136.68,12.6011]
[1726181300393,7.9,136.72,136.68,1.409]
[1726181302203,11.1912,136.72,136.68,1.409]
[1726181304394,11.1914,136.71,136.68,1.409]
[1726181305094,7.9,136.71,136.68,1.409]
[1726181308706,7.9,136.71,136.66,7.9]
[1726181308908,3.6002342,136.73,136.66,7.9]
[1726181308909,7.9,136.7,136.66,7.9]
[1726181309109,7.9,136.7,136.65,7.9]
[1726181309308,7.9,136.68,136.65,7.9]
[1726181312702,11.1922,136.68,136.64,1.4036]
[1726181312911,7.9,136.67,136.62,1.3231]
[1726181313105,7.9,136.67,136.63,6.25263485]
[1726181313410,7.9,136.67,136.62,9.2231]
[1726181313608,7.9,136.67,136.63,6.25367774]
[1726181313807,7.9,136.67,136.62,4.6166]
[1726181314008,7.9,136.67,136.63,14.15425473]
[1726181314208,7.9,136.67,136.63,7.9]
[1726181314402,11.1925,136.67,136.62,4.6166]
[1726181314604,11.1925,136.67,136.63,6.25431006]
[1726181314802,11.1925,136.67,136.62,12.5166]
[1726181315003,11.1925,136.67,136.63,6.25383611]
[1726181315205,11.1925,136.67,136.62,12.5166]
[1726181315509,7.9,136.63,136.58,7.9]
[1726181315711,4.95325597,136.71,136.59,16.27253457]
[1726181315712,1.1568,136.7,136.59,16.27253457]
[1726181316013,7.9,136.63,136.58,7.9]
[1726181316212,7.9,136.63,136.6,6.25867669]
[1726181316408,7.9,136.63,136.58,7.9]
[1726181316604,7.9,136.63,136.59,6.25914323]
[1726181316805,7.9,136.63,136.6,6.25914323]
[1726181317002,11.1934,136.63,136.55,4.0423]
[1726181317206,11.1934,136.63,136.58,7.9]
[1726181317406,11.1934,136.63,136.59,6.25966282]
[1726181317610,11.1934,136.63,136.6,6.25966282]
[1726181317807,11.1934,136.63,136.56,3.2949]
[1726181318112,11.1937,136.62,136.57,16.27669433]
[1726181318314,7.9,136.61,136.58,6.26026705]
[1726181318513,7.9,136.61,136.56,11.1949]
[1726181318718,7.9,136.61,136.57,6.26297049]
[1726181318719,11.1939,136.61,136.57,6.26297049]
[1726181318924,7.9,136.59,136.58,6.26326557]
[1726181319115,7.9,136.59,136.52,4.6349]
[1726181319312,7.9,136.57,136.52,12.5349]
[1726181319613,7.9,136.57,136.53,16.2922075]
[1726181319821,7.9,136.57,136.54,6.26623365]
[1726181320019,7.9,136.57,136.52,12.5349]
[1726181320220,7.9,136.57,136.53,6.26655568]
[1726181320410,7.9,136.57,136.54,6.26655568]
[1726181320611,7.9,136.57,136.52,12.5349]
[1726181320913,11.1948,136.57,136.53,6.26637193]
[1726181321115,11.1948,136.57,136.54,6.26637193]
[1726181321306,11.1948,136.57,136.52,12.5349]
[1726181321512,11.1948,136.57,136.53,6.266585]
[1726181321709,11.1948,136.57,136.52,12.5349]
[1726181321710,11.1948,136.57,136.54,6.266585]
[1726181322021,11.1948,136.57,136.52,12.5349]
[1726181322217,11.1948,136.57,136.53,6.26648376]
[1726181322415,11.1948,136.57,136.54,6.26648376]
[1726181322616,11.1948,136.57,136.52,12.5349]
[1726181322818,11.1948,136.57,136.53,6.26666023]
[1726181323019,11.1948,136.57,136.54,6.26666023]
[1726181323216,3.2948,136.57,136.53,7.9]
[1726181324418,3.2948,136.57,136.53,11.1957]
[1726181326716,3.2951,136.56,136.53,7.9]
[1726181327315,7.9,136.58,136.53,7.9]
[1726181327316,3.2949,136.57,136.53,11.1957]
[1726181327916,11.1949,136.57,136.53,11.1957]
[1726181332928,3.2951,136.56,136.53,11.1957]
[1726181333824,3.2951,136.56,136.53,3.2957]
[1726181334026,11.1951,136.56,136.53,3.2957]
[1726181334827,2.5599,136.62,136.52,3.296]
[1726181334828,11.1954,136.55,136.52,3.296]
[1726181335030,7.9,136.55,136.5,14.17578555]
[1726181335231,7.9,136.55,136.5,7.9]
[1726181335432,7.9,136.53,136.48,11.4841]
[1726181335732,2.5599,136.62,136.48,11.4841]
[1726181335733,7.9,136.52,136.48,11.4841]
[1726181336128,11.1961,136.52,136.49,3.2966]
[1726181336324,7.9,136.52,136.48,11.4841]
[1726181336724,7.9,136.52,136.48,8.7368]
[1726181336926,7.9,136.5,136.47,165.27752952]
[1726181337628,11.1966,136.5,136.45,7.9]
[1726181338134,11.1966,136.5,136.46,3.2973]
[1726181338534,11.1968,136.49,136.43,7.325]
[1726181338730,7.9,136.49,136.45,7.9]
[1726181339425,7.9,136.49,136.46,3.2974]
[1726181339829,2.6586,136.54,136.43,7.325]
[1726181339830,7.9,136.48,136.43,7.325]
[1726181340029,7.9,136.48,136.44,7.9]
[1726181340231,7.9,136.48,136.45,3.2976]
[1726181340538,7.9,136.48,136.44,7.9]
[1726181340732,11.197,136.48,136.44,11.1978]
[1726181340931,7.9,136.48,136.44,11.1978]
[1726181341836,7.9,136.48,136.45,3.2976]
[1726181342241,7.9,136.48,136.46,3.2974]
[1726181342627,3.8156,136.54,136.46,7.9]
[1726181342825,2.6586,136.54,136.46,7.9]
[1726181343029,7.9,136.51,136.46,7.9]
[1726181343332,11.1962,136.51,136.47,3.2971]
[1726181343533,2.6586,136.54,136.43,7.325]
[1726181343732,7.9,136.46,136.43,7.325]
[1726181343929,3.75054945,136.55,136.45,7.9]
[1726181344130,7.9,136.5,136.46,7.9]
[1726181344634,7.9,136.5,136.47,3.2971]
[1726181345434,7.9,136.49,136.45,11.1975]
[1726181346334,7.9,136.48,136.45,3.2975]
[1726181347243,7.9,136.48,136.44,3.2979]
[1726181347741,3.2962,136.52,136.45,7.9]
[1726181347941,3.2962,136.52,136.43,7.325]
[1726181347942,7.9,136.52,136.47,7.9]
[1726181348436,7.9,136.5,136.47,3.297]
[1726181348743,7.9,136.51,136.47,7.9]
[1726181348942,3.8741,136.6,136.5,3.2964]
[1726181349141,7.9,136.53,136.5,3.2964]
[1726181350943,3.8741,136.6,136.5,7.9]
[1726181351136,7.9,136.57,136.52,7.9]
[1726181351337,7.9,136.57,136.53,7.9]
[1726181352233,7.9,136.57,136.53,11.1956]
[1726181352448,7.9,136.57,136.48,1.3876]
[1726181352449,7.9,136.54,136.48,1.3876]
[1726181352639,7.9,136.54,136.5,3.2963]
[1726181352838,3.62424367,136.57,136.48,9.2876]
[1726181352839,7.9,136.53,136.48,9.2876]
[1726181353345,7.9,136.53,136.49,3.2966]
[1726181355149,7.9,136.53,136.5,3.2965]
[1726181357545,7.9,136.51,136.33,352.093561]
[1726181357756,7.9,136.45,136.42,3.2983]
[1726181358055,3.71812719,136.48,136.41,4.0573]
[1726181358253,2.6004,136.5,136.41,4.0573]
[1726181358254,7.9,136.45,136.41,4.0573]
[1726181358558,3.65145076,136.48,136.42,7.9]
[1726181358752,7.9,136.46,136.42,7.9]
[1726181358937,7.9,136.46,136.42,3.2982]
[1726181360044,7.9,136.46,136.41,11.9573]
[1726181360045,7.9,136.48,136.43,11.1981]
[1726181360247,1.3986,136.56,136.44,7.9]
[1726181360443,7.9,136.49,136.44,7.9]
[1726181361145,7.9,136.49,136.44,11.1977]
[1726181362557,7.9,136.49,136.44,3.2977]
[1726181362945,7.9,136.49,136.45,7.9]
[1726181363352,7.9,136.5,136.45,7.9]
[1726181363654,7.9,136.51,136.47,3.2972]
[1726181363851,7.9,136.51,136.46,7.9]
[1726181364155,7.9,136.51,136.47,3.2971]
[1726181365045,7.9,136.51,136.46,11.1974]
[1726181368049,7.9,136.49,136.45,18.5226]
[1726181369754,7.9,136.48,136.45,18.5226]
[1726181370261,7.9,136.48,136.44,11.1979]
[1726181371160,7.9,136.48,136.44,7.9]
[1726181371161,7.9,136.47,136.44,7.9]
[1726181374670,4.83681733,136.55,136.45,7.9]
[1726181374874,7.9,136.51,136.41,11.3823]
[1726181375063,7.9,136.49,136.45,7.9]
[1726181380070,7.9,136.49,136.45,11.1975]
[1726181380368,7.9,136.5,136.46,7.9]
[1726181380885,7.9,136.5,136.46,11.1973]
[1726181387878,7.9,136.5,136.46,7.9]
[1726181388377,7.9,136.5,136.47,3.2972]
[1726181388876,7.9,136.5,136.46,7.9]
[1726181389574,11.1965,136.5,136.46,11.1973]
[1726181391565,11.1965,136.5,136.46,3.2973]
[1726181392682,7.9,136.47,136.42,7.325]
[1726181392866,7.9,136.43,136.41,2.6647]
[1726181393268,3.68770155,136.48,136.41,2.6647]
[1726181393478,7.9,136.46,136.41,10.5647]
[1726181393875,7.9,136.44,136.41,10.5647]
[1726181394268,7.9,136.44,136.41,13.8633]
[1726181395175,7.9,136.44,136.42,3.2984]
[1726181395371,7.9,136.45,136.42,3.2984]
[1726181395680,11.1977,136.45,136.41,13.8633]
[1726181395880,1.327,136.49,136.41,10.5647]
[1726181396176,7.9,136.45,136.41,2.6647]
[1726181396373,7.9,136.44,136.41,2.6647]
[1726181396977,7.9,136.44,136.41,5.9632]
[1726181397972,7.9,136.44,136.42,3.2984]
[1726181398179,7.9,136.44,136.41,2.6647]
[1726181399782,7.9,136.44,136.41,5.9633]
[1726181400380,3.2975,136.46,136.43,11.1982]
[1726181400686,7.9,136.47,136.43,11.1982]
[1726181401079,7.9,136.45,136.41,2.6647]
[1726181401385,7.9,136.44,136.41,2.6647]
[1726181401974,7.9,136.44,136.41,1.3071]
[1726181402284,7.9,136.43,136.41,1.3071]
[1726181402578,7.9,136.43,136.39,11.1991]
[1726181402785,7.9,136.43,136.39,3.2991]
[1726181403186,7.9,136.42,136.39,3.2991]
[1726181405872,7.9,136.42,136.37,1.3377]
[1726181406073,7.9,136.4,136.38,6.13067889]
[1726181406271,6.21861047,136.48,136.37,3.2994]
[1726181406475,7.9,136.4,136.37,3.2994]
[1726181408881,11.199,136.4,136.37,3.2994]
[1726181409380,7.9,136.4,136.38,3.2994]
[1726181409574,7.9,136.42,136.38,7.9]
[1726181409977,11.1985,136.42,136.39,3.2991]
[1726181411785,11.1985,136.42,136.38,7.9]
[1726181412191,7.9,136.41,136.35,172.89747218]
[1726181412388,7.9,136.41,136.38,3.2993]
[1726181413585,3.2985,136.42,136.38,3.2993]
[1726181413789,3.2983,136.43,136.39,3.2991]
[1726181414088,7.9,136.42,136.39,3.2991]
[1726181415894,7.9,136.42,136.38,3.2993]
[1726181415895,11.1984,136.42,136.38,3.2993]
[1726181416290,7.9,136.39,136.35,172.89747218]
[1726181416485,7.9,136.39,136.36,3.2997]
[1726181417597,11.1992,136.39,136.36,3.2997]
[1726181417984,7.9,136.38,136.35,176.19747218]
[1726181418294,7.9,136.37,136.35,165.57247218]
[1726181419293,11.1996,136.37,136.34,3.3003]
[1726181419489,7.9,136.37,136.33,1.3181]
[1726181420499,7.9,136.38,136.33,9.2181]
[1726181421302,7.9,136.38,136.35,3.3001]
[1726181421806,3.61392847,136.41,136.35,3.3001]
[1726181422005,7.9,136.38,136.35,3.3001]
[1726181422204,7.9,136.37,136.34,3.3003]
[1726181423710,7.9,136.37,136.35,3.3]
[1726181424507,7.9,136.37,136.34,3.3003]
[1726181424710,7.9,136.37,136.33,9.2181]
[1726181425106,7.9,136.37,136.34,3.3002]
[1726181425610,11.1997,136.37,136.33,4.6185]
[1726181425812,7.9,136.37,136.33,4.6185]
[1726181426110,3.3006,136.33,136.25,7.325]
[1726181426310,11.2006,136.33,136.28,15.225]
[1726181426608,11.2006,136.33,136.29,3.3014]
[1726181427104,11.2006,136.33,136.3,3.3013]
[1726181427605,7.9,136.33,136.3,3.3013]
[1726181434719,7.9,136.33,136.3,3.1013]
[1726181437008,7.9,136.33,136.28,15.225]
[1726181437009,11.2006,136.33,136.29,3.3014]
[1726181438014,7.9,136.33,136.28,15.225]
[1726181438418,11.2006,136.33,136.3,3.3013]
[1726181440016,3.72762015,136.37,136.26,8.6197]
[1726181440017,7.9,136.31,136.26,8.6197]
[1726181440216,3.72762015,136.37,136.22,7.325]
[1726181440416,7.9,136.3,136.28,3.3018]
[1726181440623,3.3005,136.34,136.28,7.9]
[1726181440812,3.8096,136.4,136.29,7.9]
[1726181441013,7.40247469,136.4,136.29,15.225]
[1726181441320,7.9,136.35,136.3,7.9]
[1726181441522,7.9,136.36,136.31,7.9]
[1726181441723,11.1999,136.36,136.32,3.3007]
[1726181442520,11.1999,136.36,136.31,11.201]
[1726181444018,7.9,136.35,136.31,11.201]
[1726181444627,3.2999,136.36,136.31,11.201]
[1726181444817,7.9,136.35,136.32,3.3008]
[1726181445422,3.2998,136.37,136.32,3.3008]
[1726181445630,7.9,136.35,136.32,3.3008]
[1726181449526,7.9,136.34,136.32,3.3008]
[1726181454536,7.9,136.33,136.3,3.3011]
[1726181455126,11.2007,136.33,136.3,3.3011]
[1726181458147,3.3009,136.32,136.3,3.3011]
[1726181458437,3.3009,136.32,136.29,16.504]
[1726181458438,3.3009,136.32,136.29,12.4805]
[1726181458632,3.3009,136.32,136.29,4.5805]
[1726181459532,3.3009,136.32,136.29,3.3015]
[1726181459533,11.2009,136.32,136.29,3.3015]
[1726181459935,3.3012,136.31,136.28,13.8618]
[1726181460131,3.3012,136.31,136.28,5.9618]
[1726181460334,7.9,136.31,136.28,1.2914]
[1726181461235,11.2015,136.3,136.25,7.9]
[1726181461641,11.2015,136.3,136.24,2.7098]
[1726181461642,11.2015,136.3,136.26,3.3022]
[1726181461936,3.3017,136.29,136.26,3.3022]
[1726181462838,3.3011,136.31,136.27,11.202]
[1726181463140,7.9,136.31,136.27,11.202]
[1726181463644,3.3015,136.3,136.27,7.9]
[1726181464234,3.3015,136.3,136.27,11.202]
[1726181465338,3.3015,136.3,136.27,7.9]
[1726181465538,3.3015,136.3,136.24,2.7098]
[1726181465539,3.3017,136.29,136.25,7.9]
[1726181466134,7.9,136.3,136.25,11.2024]
[1726181466135,3.3018,136.28,136.25,11.2024]
[1726181466443,7.9,136.27,136.24,1.3978]
[1726181467142,11.2022,136.27,136.24,4.7005]
[1726181467344,3.67089994,136.31,136.23,1.3427]
[1726181467345,7.9,136.26,136.23,1.3427]
[1726181468138,3.3025,136.25,136.23,1.3427]
[1726181469046,3.3025,136.25,136.22,3.3031]
[1726181477153,7.9,136.23,136.2,1.3902]
[1726181478854,11.203,136.23,136.2,4.6938]
[1726181479851,3.3033,136.22,136.18,3.3042]
[1726181480255,3.67089994,136.31,136.2,7.9]
[1726181480557,11.2024,136.26,136.22,3.3031]
[1726181480951,11.2024,136.26,136.22,11.2031]
[1726181481150,3.3024,136.26,136.23,3.303]
[1726181481349,14.78396969,136.27,136.23,3.303]
[1726181481551,3.9462,136.32,136.25,3.3025]
[1726181481853,7.9,136.29,136.25,3.3025]
[1726181482456,3.3013,136.3,136.25,3.3025]
[1726181482656,7.9,136.29,136.25,3.3025]
[1726181483154,4.7087,136.32,136.26,11.5236558]
[1726181483364,7.9,136.31,136.27,7.9]
[1726181483958,7.9,136.31,136.27,11.2019]
[1726181484457,11.2012,136.31,136.27,7.9]
[1726181484651,11.2012,136.31,136.26,12.5784]
[1726181484852,7.9,136.29,136.26,4.6784]
[1726181485346,2.4457,136.38,136.28,7.9]
[1726181485546,7.9,136.35,136.31,7.9]
[1726181485946,7.9,136.35,136.31,11.201]
[1726181487358,3.3,136.36,136.31,11.201]
[1726181487359,7.9,136.34,136.31,3.301]
[1726181488658,7.9,136.34,136.3,11.2012]
[1726181489745,7.9,136.31,136.26,1.3762]
[1726181489950,7.9,136.3,136.26,1.3762]
[1726181490458,11.2013,136.3,136.26,4.6784]
[1726181490760,7.9,136.29,136.26,1.3762]
[1726181490958,7.9,136.28,136.18,7.325]
[1726181491154,7.9,136.27,136.22,7.9]
[1726181491461,7.9,136.27,136.23,6.15634684]
[1726181491661,7.9,136.27,136.22,7.9]
[1726181492157,7.9,136.27,136.23,6.15665655]
[1726181492349,11.2021,136.27,136.24,3.3026]
[1726181493655,3.3023,136.26,136.23,3.303]
[1726181494450,3.3026,136.25,136.22,3.3032]
[1726181494751,11.2026,136.25,136.22,3.3032]
[1726181495149,7.9,136.25,136.22,3.3032]
[1726181495554,7.9,136.25,136.23,3.303]
[1726181496758,7.9,136.26,136.23,3.303]
[1726181497962,11.2021,136.27,136.23,3.303]
[1726181498864,7.9,136.25,136.22,3.3032]
[1726181499274,7.9,136.24,136.2,7.325]
[1726181499566,7.9,136.24,136.21,9.46232882]
[1726181499754,7.9,136.24,136.21,3.3034]
[1726181500270,11.203,136.24,136.2,11.2037]
[1726181500452,11.203,136.24,136.21,6.16031094]
[1726181500651,11.203,136.24,136.2,3.3036]
[1726181501264,11.203,136.24,136.21,3.3035]
[1726181503761,7.9,136.24,136.22,3.3032]
[1726181504163,1.39,136.29,136.22,3.3032]
[1726181504464,11.2025,136.26,136.22,3.3032]
[1726181505063,7.9,136.23,136.16,1.33]
[1726181505267,7.9,136.23,136.18,7.9]
[1726181505464,7.9,136.23,136.18,11.58896214]
[1726181505768,7.9,136.23,136.21,3.3035]
[1726181506954,7.9,136.23,136.19,7.9]
[1726181507154,11.2027,136.25,136.2,7.9]
[1726181507556,5.10576026,136.29,136.22,7.9]
[1726181507761,7.9,136.27,136.23,7.9]
[1726181508560,1.39,136.29,136.23,7.9]
[1726181508757,2.5637,136.32,136.23,7.9]
[1726181508758,6.14766358,136.32,136.25,7.9]
[1726181509065,7.9,136.3,136.27,3.3019]
[1726181509774,2.459,136.38,136.28,7.9]
[1726181509967,7.9,136.33,136.28,7.9]
[1726181510268,11.2002,136.35,136.31,3.3009]
[1726181510571,7.9,136.35,136.31,7.9]
[1726181510759,7.9,136.35,136.32,3.3007]
[1726181511365,7.9,136.36,136.32,3.3007]
[1726181511771,11.1999,136.36,136.32,3.3007]
[1726181512159,3.2999,136.36,136.32,3.3007]
[1726181513066,15.6297,136.37,136.32,3.3007]
[1726181513472,3.2999,136.36,136.31,3.301]
[1726181513873,12.33,136.37,136.31,3.301]
[1726181514266,3.3,136.36,136.31,3.301]
[1726181516770,3.3001,136.35,136.31,3.301]
[1726181516964,12.33,136.36,136.3,6.0453]
[1726181517763,12.33,136.36,136.3,3.3012]
[1726181517971,12.33,136.34,136.29,3.3015]
[1726181518860,3.3007,136.33,136.29,3.3015]
[1726181519768,12.33,136.38,136.29,12.33]
[1726181519975,12.33,136.38,136.29,15.93104197]
[1726181520165,3.2998,136.37,136.33,3.3005]
[1726181521072,15.6295,136.38,136.33,3.3005]
[1726181521376,12.33,136.38,136.33,3.3005]
[1726181522276,12.33,136.38,136.29,15.93104197]
[1726181522277,12.33,136.37,136.32,3.3007]
[1726181523274,12.33,136.37,136.29,15.93104197]
[1726181523275,12.33,136.37,136.33,3.3006]
[1726181523468,12.33,136.38,136.33,3.3006]
[1726181523869,3.2997,136.37,136.33,3.3006]
[1726181527584,6.594,136.48,136.33,12.33]
[1726181527882,6.594,136.48,136.33,15.9441936]
[1726181527883,12.33,136.42,136.33,15.9441936]
[1726181528076,12.33,136.42,136.35,12.33]
[1726181528682,3.2987,136.41,136.37,3.2995]
[1726181528981,12.33,136.42,136.35,12.33]
[1726181529182,3.2983,136.43,136.38,3.2992]
[1726181529994,3.2983,136.43,136.39,3.2991]
[1726181530894,3.2984,136.42,136.38,3.2993]
[1726181532188,28.562,136.53,136.37,12.33]
[1726181532395,12.33,136.46,136.37,12.33]
[1726181532596,16.06267326,136.46,136.37,12.33]
[1726181533390,3.2981,136.44,136.4,3.2988]
[1726181536789,3.2983,136.43,136.39,3.299]
[1726181536998,3.2983,136.43,136.35,3.73936638]
[1726181536999,12.33,136.43,136.35,3.73936638]
[1726181537701,3.2987,136.41,136.37,3.2995]
[1726181539600,3.2985,136.42,136.38,3.2994]
[1726181542702,12.33,136.43,136.35,1.3097]
[1726181543317,12.33,136.43,136.35,4.6097]
[1726181543318,3.2993,136.39,136.35,4.6097]
[1726181543706,12.33,136.41,136.34,1.2934]
[1726181544021,3.2995,136.38,136.34,4.5936]
[1726181545117,3.2997,136.37,136.33,3.3005]
[1726181545307,3.2997,136.37,136.31,13.6397]
[1726181545508,3.2997,136.37,136.31,1.3097]
[1726181545820,12.33,136.39,136.31,1.3097]
[1726181546011,12.33,136.39,136.3,17.27423333]
[1726181546818,3.2999,136.37,136.3,17.27423333]
[1726181547319,3.2999,136.36,136.32,3.3006]
[1726181547521,3.2999,136.36,136.3,17.27423333]
[1726181548129,3.2999,136.36,136.33,3.3006]
[1726181548426,3.2999,136.36,136.3,17.27423333]
[1726181548427,3.2997,136.37,136.32,12.33]
[1726181548916,1.3355,136.4,136.3,4.94423333]
[1726181548917,2.5376,136.44,136.34,12.33]
[1726181549126,12.33,136.43,136.34,12.33]
[1726181549308,3.2991,136.4,136.36,3.2999]
[1726181551715,3.2992,136.39,136.35,3.3]
[1726181556126,3.2992,136.39,136.35,11.19]
[1726181558426,3.2994,136.38,136.35,7.89]
[1726181558618,7.89,136.38,136.33,7.89]
[1726181559019,3.2994,136.38,136.34,3.3002]
[1726181560027,3.2994,136.38,136.34,11.1902]
[1726181560623,3.2996,136.37,136.34,7.89]
[1726181560929,3.2996,136.37,136.33,3.3005]
[1726181561228,3.2996,136.37,136.34,7.89]
[1726181561618,3.2996,136.37,136.33,11.1905]
[1726181563726,3.2996,136.38,136.34,3.3004]
[1726181564131,7.89,136.39,136.33,7.89]
[1726181564730,3.2996,136.37,136.33,11.1904]
[1726181565334,2.5376,136.44,136.35,7.89]
[1726181565637,2.5376,136.44,136.3,11.07568611]
[1726181565638,7.89,136.4,136.36,7.89]
[1726181566535,3.2992,136.39,136.36,7.89]
[1726181566832,7.89,136.42,136.37,7.89]
[1726181567930,3.2988,136.41,136.37,7.89]
[1726181568327,11.1888,136.41,136.37,7.89]